fUSD/lending_fUSD_20260224
["ID","MTS","AMOUNT","RATE_DAILY","PERIOD"]
[406601156,1771966752838,174.35,8.851e-05,2]
[406601157,1771966753091,174.35,9.065e-05,2]
[406601160,1771966776515,884.36,0.00045561,30]
[406601166,1771966806992,1208.0,0.00045561,30]
[406601167,1771966807128,864.15923912,0.00045561,120]
[406601169,1771966807523,864.15923912,0.00045561,120]
[406601171,1771966807818,864.15923912,0.00045561,120]
[406601172,1771966808103,864.15923912,0.00045561,120]
[406601174,1771966808406,864.15923912,0.00045561,120]
[406601175,1771966808777,864.15923912,0.00045561,120]
[406601177,1771966809015,864.15923912,0.00045561,120]
[406601178,1771966809313,864.15923912,0.00045561,120]
[406601180,1771966809646,864.15923912,0.00045561,120]
[406601182,1771966810082,864.15923912,0.00045561,120]
[406601183,1771966810406,864.15923912,0.00045561,120]
[406601185,1771966810696,864.15923912,0.00045561,120]
[406601187,1771966811337,864.15923912,0.00045561,120]
[406601188,1771966811652,864.15923912,0.00045561,120]
[406601189,1771966811930,522.0,0.00045561,30]
[406601190,1771966811992,864.15923912,0.00045561,120]
[406601191,1771966812331,864.15923912,0.00045561,120]
[406601192,1771966812646,864.15923912,0.00045561,120]
[406601193,1771966812963,864.15923912,0.00045561,120]
[406601194,1771966813232,240.0,0.00045561,30]
[406601195,1771966813619,864.15923912,0.00045561,120]
[406601196,1771966813943,864.15923912,0.00045561,120]
[406601197,1771966814446,864.15923912,0.00045561,120]
[406601198,1771966814762,864.15923912,0.00045561,120]
[406601199,1771966815173,864.15923912,0.00045561,120]
[406601200,1771966815495,864.15923912,0.00045561,120]
[406601201,1771966815814,864.15923912,0.00045561,120]
[406601202,1771966816120,864.15923912,0.00045561,120]
[406601203,1771966816422,864.15923912,0.00045561,120]
[406601204,1771966816742,864.15923912,0.00045561,120]
[406601205,1771966817110,864.15923912,0.00045561,120]
[406601206,1771966817437,864.15923912,0.00045561,120]
[406601207,1771966837199,1648.40949976,0.00045561,30]
[406601208,1771966916698,500.0,0.00045561,120]
[406601209,1771966917947,500.0,0.00045561,120]
[406601210,1771966919274,633.60200246,0.00045561,120]
[406601211,1771966927232,345.66369564,0.00045561,120]
[406601212,1771966927562,345.66369564,0.00045561,120]
[406601213,1771966927888,345.66369564,0.00045561,120]
[406601214,1771966928199,345.66369564,0.00045561,120]
[406601215,1771966928497,345.66369564,0.00045561,120]
[406601216,1771966928788,345.66369564,0.00045561,120]
[406601217,1771966929140,345.66369564,0.00045561,120]
[406601218,1771966929500,345.66369564,0.00045561,120]
[406601219,1771966929794,345.66369564,0.00045561,120]
[406601220,1771966930091,345.66369564,0.00045561,120]
[406601221,1771966930384,345.66369564,0.00045561,120]
[406601222,1771966930723,345.66369564,0.00045561,120]
[406601223,1771966930994,345.66369564,0.00045561,120]
[406601224,1771966931310,345.66369564,0.00045561,120]
[406601225,1771966947461,2071.51,0.00045561,30]
[406601226,1771966955205,2000.0,0.00045561,30]
[406601227,1771966987434,500.0,9.465e-05,3]
[406601228,1771966995959,331.09,0.00045561,120]
[406601229,1771967021565,150.0,0.00045561,30]
[406601230,1771967026520,150.0,0.00045561,30]
[406601231,1771967031845,150.0,0.00045561,30]
[406601232,1771967036509,150.0,0.00045561,30]
[406601233,1771967041532,267.65274555,0.00045561,30]
[406601234,1771967046521,178.77203279,0.00045561,30]
[406601235,1771967047064,172.83184782,0.00045561,120]
[406601236,1771967051556,178.77203279,0.00045561,30]
[406601237,1771967056530,178.77203279,0.00045561,30]
[406601238,1771967073160,280.00847901,0.00045561,60]
[406601241,1771967167078,172.83184781,0.00045731,120]
[406601242,1771967222655,264.87,0.00045731,120]
[406601245,1771967351387,150.0,0.00045731,120]
[406601246,1771967374289,321.81300984,0.00045731,120]
[406601247,1771967397406,1000.0,0.00045731,30]
[406601250,1771967432002,-174.35,9.278e-05,2]
[406601251,1771967432012,-79.79013485,9.278e-05,2]
[406601252,1771967432025,-147.20986515,9.278e-05,2]
[406601253,1771967432035,-174.35,9.491e-05,2]
[406601254,1771967432044,-173.970047,9.499e-05,2]
[406601255,1771967432053,-154.24,9.627e-05,2]
[406601256,1771967432063,-174.35,9.704e-05,2]
[406601257,1771967432072,-5257.46108218,9.799e-05,2]
[406601258,1771967432081,-6119.55279173,9.799e-05,2]
[406601259,1771967432092,-258.656489,9.799e-05,2]
[406601260,1771967432103,-632.866641,9.799e-05,2]
[406601261,1771967432152,-787.27893922,9.799e-05,2]
[406601262,1771967432211,-909.41967187,9.799e-05,2]
[406601263,1771967432222,-645.568179,9.799e-05,2]
[406601282,1771967443359,-495.676496,9.799e-05,2]
[406601283,1771967443371,-1788.0,9.799e-05,2]
[406601284,1771967443382,-343.10411232,9.799e-05,2]
[406601302,1771967446015,-256.99315186,9.799e-05,2]
[406601304,1771967446077,-10437.1936,9.799e-05,2]
[406601305,1771967461242,354.85,0.00045731,120]
[406601306,1771967473984,1459.91817132,9.6e-05,3]
[406601307,1771967474054,2769.83634269,9.6e-05,3]
[406601308,1771967631227,1898.97504341,0.00045731,120]
[406601309,1771967648258,1137.10461325,9.6e-05,3]
[406601310,1771967648306,2124.20922655,9.6e-05,3]
[406601311,1771967701497,283.88,0.00045732,120]
[406601312,1771967739468,200.0,9.7e-05,3]
[406601313,1771967741560,400.0,9.8e-05,3]
[406601314,1771967743649,600.0,9.9e-05,3]
[406601315,1771967745755,800.0,0.0001,3]
[406601316,1771967747874,1100.0,0.000109,3]
[406601317,1771967772761,154.37,0.00045732,30]
[406601318,1771967772836,154.07,0.00045732,30]
[406601319,1771967772928,472.42,0.00045732,30]
[406601320,1771967787341,484.95,0.00045732,30]
[406601321,1771967941641,227.1,0.00045732,120]
[406601322,1771967951332,150.0,0.00045732,120]
[406601323,1771968096475,9373.39,9.071e-05,2]
[406601324,1771968170696,10000.01,9.069e-05,2]
[406601325,1771968170718,10000.01,9.069e-05,2]
[406601326,1771968170739,10000.01,9.069e-05,2]
[406601327,1771968170760,10000.01,9.069e-05,2]
[406601329,1771968181666,181.68,0.00045774,120]
[406601330,1771968182157,-300.0,9.068e-05,2]
[406601331,1771968182314,-2829.99132893,9.069e-05,2]
[406601332,1771968182443,-10000.01,9.069e-05,2]
[406601333,1771968182759,-10000.01,9.069e-05,2]
[406601336,1771968300655,1190.02,7.9e-05,2]
[406601338,1771968308684,655.70367925,0.00045774,90]
[406601339,1771968313016,338.68988155,0.00045774,60]
[406601340,1771968317365,171.15332136,0.00045774,120]
[406601341,1771968325209,655.45985044,0.00045774,120]
[406601342,1771968344735,2571.28959,0.00045774,120]
[406601343,1771968346063,166.2135439,0.00045774,120]
[406601344,1771968352551,3977.34264107,0.00045774,30]
[406601345,1771968359175,186.87236347,0.00045774,90]
[406601346,1771968362778,470.39113839,0.00045774,120]
[406601348,1771968371001,200.0,0.00045774,120]
[406601349,1771968371598,200.0,0.00045774,120]
[406601350,1771968402170,-300.0,9.067e-05,2]
[406601351,1771968402197,-300.0,9.068e-05,2]
[406601352,1771968402506,-300.0,9.068e-05,2]
[406601353,1771968402563,-1200.0,9.068e-05,2]
[406601354,1771968402592,-2511.14297776,9.068e-05,2]
[406601355,1771968402700,-777.72404448,9.068e-05,2]
[406601356,1771968404678,-10000.01,9.069e-05,2]
[406601357,1771968413705,-4491.82867107,9.069e-05,2]
[406601358,1771968414932,834.57345242,0.00045774,120]
[406601359,1771968424330,250.0,0.00045774,120]
[406601360,1771968424404,200.0,0.00045774,120]
[406601361,1771968424553,250.0,0.00045774,120]
[406601362,1771968424693,500.0,0.00045774,120]
[406601363,1771968424826,2000.0,0.00045774,120]
[406601364,1771968424919,250.0,0.00045774,120]
[406601365,1771968424992,200.0,0.00045774,120]
[406601366,1771968425145,250.0,0.00045774,120]
[406601367,1771968425202,250.0,0.00045774,120]
[406601368,1771968425287,500.0,0.00045774,120]
[406601369,1771968425416,2000.0,0.00045774,120]
[406601370,1771968425481,264.59118713,0.00045774,120]
[406601371,1771968425582,200.0,0.00045774,120]
[406601372,1771968425761,250.0,0.00045774,120]
[406601373,1771968425822,250.0,0.00045774,120]
[406601374,1771968425878,250.0,0.00045774,120]
[406601375,1771968425946,500.0,0.00045774,120]
[406601376,1771968426007,2000.0,0.00045774,120]
[406601377,1771968426071,330.23781355,0.00045774,30]
[406601378,1771968426184,200.0,0.00045774,120]
[406601379,1771968426373,250.0,0.00045774,120]
[406601380,1771968426432,250.0,0.00045774,120]
[406601381,1771968426490,250.0,0.00045774,120]
[406601382,1771968426555,500.0,0.00045774,120]
[406601383,1771968426625,2000.0,0.00045774,120]
[406601384,1771968426824,200.0,0.00045774,120]
[406601385,1771968427433,250.0,0.00045774,120]
[406601386,1771968427493,250.0,0.00045774,120]
[406601387,1771968427548,250.0,0.00045774,120]
[406601388,1771968427653,2000.0,0.00045774,120]
[406601389,1771968427710,500.0,0.00045774,120]
[406601390,1771968427894,200.0,0.00045774,120]
[406601391,1771968427952,250.0,0.00045774,120]
[406601392,1771968428010,250.0,0.00045774,120]
[406601393,1771968428073,250.0,0.00045774,120]
[406601394,1771968428135,500.0,0.00045774,120]
[406601395,1771968428194,2000.0,0.00045774,120]
[406601396,1771968428267,200.0,0.00045774,120]
[406601397,1771968428392,250.0,0.00045774,120]
[406601398,1771968428449,250.0,0.00045774,120]
[406601399,1771968428512,250.0,0.00045774,120]
[406601400,1771968428617,500.0,0.00045774,120]
[406601401,1771968428673,2000.0,0.00045774,120]
[406601402,1771968428747,200.0,0.00045774,120]
[406601403,1771968428838,250.0,0.00045774,120]
[406601404,1771968428897,250.0,0.00045774,120]
[406601405,1771968428957,250.0,0.00045774,120]
[406601406,1771968429089,2000.0,0.00045774,120]
[406601407,1771968429149,500.0,0.00045774,120]
[406601408,1771968429262,200.0,0.00045774,120]
[406601409,1771968429459,250.0,0.00045774,120]
[406601410,1771968429516,250.0,0.00045774,120]
[406601411,1771968429573,250.0,0.00045774,120]
[406601412,1771968429720,2000.0,0.00045774,120]
[406601413,1771968429786,500.0,0.00045774,120]
[406601414,1771968429913,200.0,0.00045774,120]
[406601415,1771968430076,250.0,0.00045774,120]
[406601416,1771968430156,250.0,0.00045774,120]
[406601417,1771968430213,250.0,0.00045774,120]
[406601418,1771968430340,2000.0,0.00045774,120]
[406601419,1771968430407,500.0,0.00045774,120]
[406601420,1771968430511,200.0,0.00045774,120]
[406601421,1771968430724,250.0,0.00045774,120]
[406601422,1771968430783,250.0,0.00045774,120]
[406601423,1771968430846,250.0,0.00045774,120]
[406601424,1771968430951,2000.0,0.00045774,120]
[406601425,1771968431086,500.0,0.00045774,120]
[406601426,1771968431261,200.0,0.00045774,120]
[406601427,1771968431342,250.0,0.00045774,120]
[406601428,1771968431402,250.0,0.00045774,120]
[406601429,1771968431471,250.0,0.00045774,120]
[406601430,1771968431609,2000.0,0.00045774,120]
[406601431,1771968431715,500.0,0.00045774,120]
[406601432,1771968431873,200.0,0.00045774,120]
[406601433,1771968431990,250.0,0.00045774,120]
[406601434,1771968432294,250.0,0.00045774,120]
[406601435,1771968432356,2000.0,0.00045774,120]
[406601436,1771968432422,500.0,0.00045774,120]
[406601437,1771968432509,200.0,0.00045774,120]
[406601438,1771968432595,250.0,0.00045774,120]
[406601439,1771968432729,250.0,0.00045774,120]
[406601440,1771968433015,2000.0,0.00045774,120]
[406601441,1771968433091,500.0,0.00045774,120]
[406601442,1771968433191,200.0,0.00045774,120]
[406601443,1771968433245,500.0,0.00045774,120]
[406601444,1771968433374,250.0,0.00045774,120]
[406601445,1771968433670,2000.0,0.00045774,120]
[406601446,1771968433730,500.0,0.00045774,120]
[406601447,1771968433883,500.0,0.00045774,120]
[406601448,1771968433938,200.0,0.00045774,120]
[406601449,1771968434009,250.0,0.00045774,120]
[406601450,1771968434296,2000.0,0.00045774,120]
[406601451,1771968434461,500.0,0.00045774,120]
[406601452,1771968434492,178.19,7.9e-05,2]
[406601453,1771968434562,500.0,0.00045774,120]
[406601454,1771968434627,200.0,0.00045774,120]
[406601455,1771968434728,250.0,0.00045774,120]
[406601456,1771968434868,1030.0,0.00045774,120]
[406601457,1771968434943,2000.0,0.00045774,120]
[406601458,1771968435006,500.0,0.00045774,120]
[406601459,1771968435151,500.0,0.00045774,120]
[406601460,1771968435224,200.0,0.00045774,120]
[406601461,1771968435493,250.0,0.00045774,120]
[406601462,1771968435581,1068.11,0.00045774,120]
[406601463,1771968435663,2000.0,0.00045774,120]
[406601464,1771968435718,500.0,0.00045774,120]
[406601465,1771968435897,500.0,0.00045774,120]
[406601466,1771968435967,200.0,0.00045774,120]
[406601467,1771968436034,151.0,0.00045774,120]
[406601468,1771968436095,250.0,0.00045774,120]
[406601469,1771968436225,1107.63007,0.00045774,120]
[406601470,1771968436342,500.0,0.00045774,120]
[406601471,1771968436403,500.0,0.00045774,120]
[406601472,1771968436476,151.0,0.00045774,120]
[406601473,1771968436534,250.0,0.00045774,120]
[406601474,1771968436607,1148.61238259,0.00045774,120]
[406601475,1771968436794,500.0,0.00045774,120]
[406601476,1771968436980,151.0,0.00045774,120]
[406601477,1771968437077,500.0,0.00045774,120]
[406601478,1771968437217,1191.11104075,0.00045774,120]
[406601479,1771968437966,151.0,0.00045774,120]
[406601480,1771968438024,500.0,0.00045774,120]
[406601481,1771968438107,1235.18214925,0.00045774,120]
[406601482,1771968438228,151.0,0.00045774,120]
[406601483,1771968438290,500.0,0.00045774,120]
[406601484,1771968438814,151.0,0.00045774,120]
[406601485,1771968439020,500.0,0.00045774,120]
[406601486,1771968439443,151.0,0.00045774,120]
[406601487,1771968439498,151.0,0.00045774,120]
[406601488,1771968439656,500.0,0.00045774,120]
[406601489,1771968440035,151.0,0.00045774,120]
[406601490,1771968440095,151.0,0.00045774,120]
[406601491,1771968440309,500.0,0.00045774,120]
[406601492,1771968440630,151.0,0.00045774,120]
[406601493,1771968440686,151.0,0.00045774,120]
[406601494,1771968440863,500.0,0.00045774,120]
[406601495,1771968441244,151.0,0.00045774,120]
[406601496,1771968441748,620.0,0.00045774,120]
[406601497,1771968441837,151.0,0.00045774,120]
[406601498,1771968442241,500.0,0.00045774,120]
[406601499,1771968442329,642.94,0.00045774,120]
[406601500,1771968442476,461.00714032,0.00045774,120]
[406601501,1771968442914,666.72878,0.00045774,120]
[406601502,1771968443256,389.34222117,0.00045774,120]
[406601503,1771968443507,691.39774486,0.00045774,120]
[406601504,1771968443720,151.0,0.00045774,120]
[406601505,1771968444087,151.0,0.00045774,120]
[406601506,1771968444280,716.97946142,0.00045774,120]
[406601507,1771968445008,151.0,0.00045774,120]
[406601508,1771968445078,743.50770149,0.00045774,120]
[406601509,1771968445478,151.0,0.00045774,120]
[406601510,1771968445906,500.0,0.00045774,120]
[406601511,1771968446084,151.0,0.00045774,120]
[406601512,1771968446526,500.0,0.00045774,120]
[406601513,1771968446687,151.0,0.00045774,120]
[406601514,1771968447124,500.0,0.00045774,120]
[406601515,1771968448468,151.0,0.00045774,120]
[406601516,1771968448705,306.82151153,0.00045774,120]
[406601517,1771968449279,151.0,0.00045774,120]
[406601518,1771968449878,156.587,0.00045774,120]
[406601519,1771968450120,151.0,0.00045774,120]
[406601520,1771968450209,771.01748645,0.00045774,120]
[406601521,1771968450475,162.380719,0.00045774,120]
[406601522,1771968450785,500.0,0.00045774,120]
[406601523,1771968450844,799.54513345,0.00045774,120]
[406601524,1771968451108,168.3888056,0.00045774,120]
[406601525,1771968451443,829.12830338,0.00045774,120]
[406601526,1771968451594,151.0,0.00045774,120]
[406601527,1771968452083,859.80605061,0.00045774,120]
[406601528,1771968452248,151.0,0.00045774,120]
[406601529,1771968452529,174.61919141,0.00045774,120]
[406601530,1771968452592,151.0,0.00045774,120]
[406601531,1771968452713,891.61887448,0.00045774,120]
[406601532,1771968452819,151.0,0.00045774,120]
[406601533,1771968452946,500.0,0.00045774,120]
[406601534,1771968453015,181.08010149,0.00045774,120]
[406601535,1771968453083,151.0,0.00045774,120]
[406601536,1771968453320,924.60877284,0.00045774,120]
[406601537,1771968453421,151.0,0.00045774,120]
[406601538,1771968453612,500.0,0.00045774,120]
[406601539,1771968453676,187.78006525,0.00045774,120]
[406601540,1771968453732,151.0,0.00045774,120]
[406601541,1771968453921,958.81929743,0.00045774,120]
[406601542,1771968454020,151.0,0.00045774,120]
[406601543,1771968454235,151.0,0.00045774,120]
[406601544,1771968454306,194.72792766,0.00045774,120]
[406601545,1771968454562,994.29561144,0.00045774,120]
[406601546,1771968454650,151.0,0.00045774,120]
[406601547,1771968454858,151.0,0.00045774,120]
[406601548,1771968454939,201.93286099,0.00045774,120]
[406601549,1771968455236,151.0,0.00045774,120]
[406601550,1771968455487,151.0,0.00045774,120]
[406601551,1771968455564,209.40437684,0.00045774,120]
[406601552,1771968455848,151.0,0.00045774,120]
[406601553,1771968456081,151.0,0.00045774,120]
[406601554,1771968456446,151.0,0.00045774,120]
[406601555,1771968456639,217.15233878,0.00045774,120]
[406601556,1771968457311,225.18697532,0.00045774,120]
[406601557,1771968457959,233.51889341,0.00045774,120]
[406601558,1771968458921,242.15909246,0.00045774,120]
[406601559,1771968459201,251.11897888,0.00045774,120]
[406601560,1771968459676,500.0,0.00045774,120]
[406601561,1771968459821,260.4103811,0.00045774,120]
[406601562,1771968460288,518.5,0.00045774,120]
[406601563,1771968460459,270.0455652,0.00045774,120]
[406601564,1771968460891,537.6845,0.00045774,120]
[406601565,1771968461139,280.03725112,0.00045774,120]
[406601566,1771968461499,557.5788265,0.00045774,120]
[406601567,1771968461747,290.39862941,0.00045774,120]
[406601568,1771968462118,578.20924308,0.00045774,120]
[406601569,1771968462365,290.39862941,0.00045774,120]
[406601570,1771968463117,520.0,0.00045774,120]
[406601571,1771968463219,599.60298507,0.00045774,120]
[406601572,1771968463749,539.24,0.00045774,120]
[406601573,1771968463809,502.02032608,0.00045774,30]
[406601574,1771968463904,621.78829552,0.00045774,120]
[406601575,1771968464511,644.79446246,0.00045774,120]
[406601576,1771968464580,559.19188,0.00045774,120]
[406601577,1771968464642,500.0,0.00045774,120]
[406601578,1771968465175,668.65185757,0.00045774,120]
[406601579,1771968465234,579.88197956,0.00045774,120]
[406601580,1771968465298,500.0,0.00045774,120]
[406601581,1771968465811,693.3919763,0.00045774,120]
[406601582,1771968465868,601.3376128,0.00045774,120]
[406601583,1771968465929,500.0,0.00045774,120]
[406601584,1771968465999,500.0,0.00045774,120]
[406601585,1771968466430,719.04747942,0.00045774,120]
[406601586,1771968466488,623.58710448,0.00045774,120]
[406601587,1771968466541,500.0,0.00045774,120]
[406601588,1771968466721,518.5,0.00045774,120]
[406601589,1771968467074,250.0,0.00045774,120]
[406601590,1771968467151,745.65223616,0.00045774,120]
[406601591,1771968467208,646.65982734,0.00045774,120]
[406601592,1771968467266,500.0,0.00045774,120]
[406601593,1771968467528,250.0,0.00045774,120]
[406601594,1771968467758,500.0,0.00045774,120]
[406601595,1771968467933,773.2413689,0.00045774,120]
[406601596,1771968468137,250.0,0.00045774,120]
[406601597,1771968468550,801.85129955,0.00045774,120]
[406601598,1771968469260,831.51979763,0.00045774,120]
[406601599,1771968469838,862.28603014,0.00045774,120]
[406601600,1771968470485,862.28603014,0.00045774,120]
[406601601,1771968470892,537.6845,0.00045774,120]
[406601602,1771968471508,557.5788265,0.00045774,120]
[406601603,1771968472109,578.20924308,0.00045774,120]
[406601604,1771968472726,599.60298507,0.00045774,120]
[406601605,1771968473347,621.78829552,0.00045774,120]
[406601606,1771968473634,151.0,0.00045774,120]
[406601607,1771968473976,644.79446246,0.00045774,120]
[406601608,1771968474288,151.0,0.00045774,120]
[406601609,1771968474346,500.0,0.00045774,120]
[406601610,1771968474409,251.0,0.00045774,120]
[406601611,1771968474632,668.65185757,0.00045774,120]
[406601612,1771968474852,151.0,0.00045774,120]
[406601613,1771968474950,500.0,0.00045774,120]
[406601614,1771968475009,260.287,0.00045774,120]
[406601615,1771968475306,693.3919763,0.00045774,120]
[406601616,1771968475543,151.0,0.00045774,120]
[406601617,1771968475612,500.0,0.00045774,120]
[406601618,1771968475685,269.917619,0.00045774,120]
[406601619,1771968475969,719.04747942,0.00045774,120]
[406601620,1771968476181,500.0,0.00045774,120]
[406601621,1771968476311,151.0,0.00045774,120]
[406601622,1771968476666,745.65223616,0.00045774,120]
[406601623,1771968476799,500.0,0.00045774,120]
[406601624,1771968476873,151.0,0.00045774,120]
[406601625,1771968477330,773.2413689,0.00045774,120]
[406601626,1771968477439,500.0,0.00045774,120]
[406601627,1771968477505,151.0,0.00045774,120]
[406601628,1771968478057,500.0,0.00045774,120]
[406601629,1771968478139,801.85129955,0.00045774,120]
[406601630,1771968478199,151.0,0.00045774,120]
[406601631,1771968478687,500.0,0.00045774,120]
[406601632,1771968478824,831.51979763,0.00045774,120]
[406601633,1771968478881,151.0,0.00045774,120]
[406601634,1771968479600,500.0,0.00045774,120]
[406601635,1771968479665,862.28603014,0.00045774,120]
[406601636,1771968479719,151.0,0.00045774,120]
[406601637,1771968479898,500.0,0.00045774,120]
[406601638,1771968480058,151.0,0.00045774,120]
[406601639,1771968480123,894.19061326,0.00045774,120]
[406601640,1771968480518,500.0,0.00045774,120]
[406601641,1771968480698,927.27566595,0.00045774,120]
[406601642,1771968481117,500.0,0.00045774,120]
[406601643,1771968481319,961.58486559,0.00045774,120]
[406601644,1771968481750,500.0,0.00045774,120]
[406601645,1771968481941,961.58486559,0.00045774,120]
[406601646,1771968482036,155.38055683,0.00045774,120]
[406601647,1771968482156,500.0,0.00045774,120]
[406601648,1771968482393,500.0,0.00045774,120]
[406601649,1771968482798,500.0,0.00045774,120]
[406601650,1771968483019,500.0,0.00045774,120]
[406601651,1771968483508,500.0,0.00045774,120]
[406601652,1771968483824,500.0,0.00045774,120]
[406601653,1771968484155,500.0,0.00045774,120]
[406601654,1771968484293,500.0,0.00045774,120]
[406601655,1771968484833,500.0,0.00045774,120]
[406601656,1771968484917,500.0,0.00045774,120]
[406601657,1771968485410,500.0,0.00045774,120]
[406601658,1771968485529,500.0,0.00045774,120]
[406601659,1771968485845,500.0,0.00045774,120]
[406601660,1771968486011,500.0,0.00045774,120]
[406601661,1771968486450,500.0,0.00045774,120]
[406601662,1771968486595,500.0,0.00045774,120]
[406601663,1771968486659,500.0,0.00045774,120]
[406601664,1771968487223,500.0,0.00045774,120]
[406601665,1771968487817,500.0,0.00045774,120]
[406601666,1771968488443,500.0,0.00045774,120]
[406601667,1771968489068,500.0,0.00045774,120]
[406601668,1771968489993,500.0,0.00045774,120]
[406601669,1771968490124,500.0,0.00045774,120]
[406601670,1771968490633,200.0,0.00045774,30]
[406601671,1771968490699,500.0,0.00045774,120]
[406601672,1771968490786,500.0,0.00045774,120]
[406601673,1771968490970,207.4,0.00045774,30]
[406601674,1771968491032,500.0,0.00045774,120]
[406601675,1771968491146,500.0,0.00045774,120]
[406601676,1771968491584,500.0,0.00045774,120]
[406601677,1771968491642,215.0738,0.00045774,30]
[406601678,1771968491742,500.0,0.00045774,120]
[406601679,1771968492189,500.0,0.00045774,120]
[406601680,1771968492246,223.0315306,0.00045774,30]
[406601681,1771968492350,500.0,0.00045774,120]
[406601682,1771968492802,500.0,0.00045774,120]
[406601683,1771968492857,231.28369723,0.00045774,30]
[406601684,1771968492945,500.0,0.00045774,120]
[406601685,1771968493409,500.0,0.00045774,120]
[406601686,1771968493501,239.84119403,0.00045774,30]
[406601687,1771968493588,500.0,0.00045774,120]
[406601688,1771968494033,500.0,0.00045774,120]
[406601689,1771968494146,248.71531821,0.00045774,30]
[406601690,1771968494272,500.0,0.00045774,120]
[406601691,1771968494790,257.91778498,0.00045774,30]
[406601692,1771968494848,500.0,0.00045774,120]
[406601693,1771968495437,267.46074303,0.00045774,30]
[406601694,1771968495494,500.0,0.00045774,120]
[406601695,1771968496219,500.0,0.00045774,120]
[406601696,1771968496287,277.35679052,0.00045774,30]
[406601697,1771968496860,500.0,0.00045774,120]
[406601698,1771968496935,287.61899177,0.00045774,30]
[406601699,1771968497563,500.0,0.00045774,120]
[406601700,1771968497630,298.26089446,0.00045774,30]
[406601701,1771968498250,500.0,0.00045774,120]
[406601702,1771968498306,309.29654756,0.00045774,30]
[406601703,1771968499135,500.0,0.00045774,120]
[406601704,1771968499229,320.74051982,0.00045774,30]
[406601705,1771968499849,332.60791905,0.00045774,30]
[406601706,1771968499905,500.0,0.00045774,120]
[406601707,1771968499970,3000.0,0.00045774,120]
[406601708,1771968500470,344.91441206,0.00045774,30]
[406601709,1771968500610,500.0,0.00045774,120]
[406601710,1771968501577,500.0,0.00045774,120]
[406601711,1771968501632,357.6762453,0.00045774,30]
[406601712,1771968502804,370.91026638,0.00045774,30]
[406601713,1771968503478,370.91026638,0.00045774,30]
[406601714,1771968504502,156.25018477,0.00045774,30]
[406601715,1771968505543,495.98525342,0.00045774,120]
[406601716,1771968506419,1589.40236675,0.00045774,120]
[406601717,1771968506983,1768.11810113,0.00045774,30]